fUSD/lending_fUSD_20251217
["ID","MTS","AMOUNT","RATE_DAILY","PERIOD"]
[398864633,1765936835680,-500.0,0.00013941,2]
[398864634,1765936836093,-200.0,0.00013941,2]
[398864635,1765936939162,150.27466612,0.00013941,2]
[398864636,1765936939186,149.72533388,0.00013941,2]
[398864637,1765936999216,-346.71949067,0.00013942,2]
[398864638,1765936999237,-265.0,0.00013942,2]
[398864639,1765936999260,-152.29,0.00013942,2]
[398864640,1765936999280,-151.68,0.00013942,2]
[398864641,1765936999302,-152.55,0.00013942,2]
[398864642,1765936999323,-152.07,0.00013942,2]
[398864643,1765936999343,-150.03,0.00013942,2]
[398864644,1765936999364,-150.25,0.00013942,2]
[398864645,1765936999386,-150.32,0.00013942,2]
[398864646,1765936999407,-152.7,0.00013942,2]
[398864647,1765936999428,-150.58,0.00013942,2]
[398864648,1765936999450,-151.43,0.00013942,2]
[398864649,1765936999471,-150.93,0.00013942,2]
[398864650,1765936999492,-152.85,0.00013942,2]
[398864651,1765936999516,-150.6,0.00013942,2]
[398864652,1765936999536,-151.86,0.00013942,2]
[398864653,1765937001654,268.14050933,0.00013941,2]
[398864654,1765937001679,31.85949067,0.00013941,2]
[398864655,1765937014239,318.41517545,0.00013842,2]
[398864656,1765937014265,37.53432455,0.00013842,2]
[398864665,1765937432102,-300.0,0.00014107,2]
[398864666,1765937432111,-175.62,0.00014107,2]
[398864668,1765937438764,-90.38,0.00014107,2]
[398864669,1765937438773,-505.86497709,0.00014273,2]
[398864670,1765937438783,-502.85645266,0.00014273,2]
[398864671,1765937438792,-502.68445702,0.00014273,2]
[398864672,1765937438802,-502.12262294,0.00014273,2]
[398864673,1765937438811,-505.06072919,0.00014273,2]
[398864674,1765937438820,-501.98917812,0.00014273,2]
[398864675,1765937438830,-250.0,0.00015068,2]
[398864676,1765937438839,-173.2,0.00015389,2]
[398864677,1765937438849,-500.0,0.00015407,2]
[398864678,1765937438859,-150.0,0.00015517,2]
[398864679,1765937438869,-300.0,0.00015518,2]
[398864680,1765937438878,-300.0,0.00015518,2]
[398864681,1765937438887,-300.0,0.00015652,2]
[398864682,1765937438897,-1200.0,0.00015652,2]
[398864684,1765937438906,-500.0,0.00015653,2]
[398864686,1765937438915,-500.0,0.00015653,2]
[398864688,1765937438924,-500.0,0.00015653,2]
[398864690,1765937438933,-500.0,0.00015653,2]
[398864692,1765937438942,-500.0,0.00015653,2]
[398864694,1765937438951,-500.0,0.00015653,2]
[398864696,1765937438960,-400.45145697,0.00015653,2]
[398864698,1765937438969,-500.0,0.00015653,2]
[398864700,1765937438978,-500.0,0.00015653,2]
[398864702,1765937438987,-500.0,0.00015653,2]
[398864704,1765937438996,-1268.2544107,0.00015654,2]
[398864856,1765937440543,-158.39370538,0.00015654,2]
[398864857,1765937440612,-458.88107873,0.00015654,2]
[398864877,1765937443023,-3297.46080519,0.00015654,2]
[398864878,1765937443033,-4329.35421534,0.000159,2]
[398864879,1765937443042,-261.28062223,0.000159,2]
[398864880,1765937443050,-348.49546994,0.000159,2]
[398864881,1765937443059,-331.33194515,0.00015999,2]
[398864882,1765937443069,-500.0,0.00015999,2]
[398864883,1765937443078,-500.0,0.00015999,2]
[398864884,1765937443087,-195.3275651,0.00015999,2]
[398864885,1765937443096,-234.6249971,0.00015999,2]
[398864886,1765937443106,-427953.85494226,0.00016,2]
[398864887,1765937443117,-332046.14505774,0.00016,2]
[398864888,1765937443125,-244.711737,0.00016,2]
[398864889,1765937443134,-8903.14320071,0.00016173,2]
[398864891,1765937443143,-4329.35421528,0.00016233,2]
[398864893,1765937443152,-225.63083689,0.00016272,2]
[398864895,1765937443161,-279.99666033,0.00016299,2]
[398864897,1765937443170,-510.72092974,0.00016299,2]
[398864900,1765937443179,-500.0,0.00016299,2]
[398864901,1765937443188,-151.0,0.00016315,2]
[398864902,1765937443197,-500.0,0.00016317,2]
[398864903,1765937443206,-208.55442295,0.00016317,2]
[398864904,1765937443215,-508.57107452,0.00016317,2]
[398864905,1765937443224,-500.0,0.00016317,2]
[398864906,1765937443233,-500.0,0.00016317,2]
[398864907,1765937443242,-514.77254056,0.00016317,2]
[398864908,1765937443251,-4789.7667143,0.00016318,2]
[398864909,1765937443260,-458027.116339,0.00016318,2]
[398864910,1765937443269,-481.46730423,0.00016372,2]
[398864911,1765937443278,-500.0,0.00016399,2]
[398864912,1765937443287,-500.0,0.00016399,2]
[398864913,1765937443295,-600.0,0.00016438,2]
[398864914,1765937443304,-8903.14320062,0.00016476,2]
[398864915,1765937443314,-1970.98,0.00016502,2]
[398864916,1765937443322,-1000.0,0.00016513,2]
[398864917,1765937443331,-1600.0,0.00016518,2]
[398864918,1765937443342,-4329.35421528,0.00016567,2]
[398864919,1765937443351,-225.63083689,0.0001663,2]
[398864920,1765937443360,-198.87783909,0.00016648,2]
[398864921,1765937443369,-8903.14320062,0.00016779,2]
[398864922,1765937443378,-510.0,0.00016779,2]
[398864923,1765937443387,-505.0,0.000168,2]
[398864924,1765937443395,-4329.35421528,0.000169,2]
[398864925,1765937443404,-509.25948189,0.00016986,2]
[398864926,1765937443414,-873.34,0.00016986,2]
[398864927,1765937443423,-50248.80339129,0.00016986,2]
[398864928,1765937443432,-600.0,0.00016986,2]
[398864929,1765937443441,-225.63083689,0.00016988,2]
[398864930,1765937443450,-500.0,0.00016999,2]
[398864931,1765937443459,-500.0,0.00016999,2]
[398864932,1765937443468,-500.0,0.00016999,2]
[398864933,1765937443478,-500.0,0.00016999,2]
[398864934,1765937443487,-402.35377443,0.00016999,2]
[398864935,1765937443496,-2000.0,0.00017,2]
[398864936,1765937443505,-5016.2752,0.00017,2]
[398864937,1765937443514,-589.51228,0.00017,2]
[398864938,1765937443524,-250.0,0.00017,2]
[398864939,1765937443533,-198.87783909,0.00017024,2]
[398864940,1765937443543,-8903.14320062,0.00017082,2]
[398864941,1765937443552,-158.9201118,0.00017088,2]
[398864942,1765937443561,-155.60133694,0.00017088,2]
[398864943,1765937443570,-150.0,0.00017088,2]
[398864944,1765937443580,-157.23023559,0.00017088,2]
[398864945,1765937443589,-157.95011395,0.00017088,2]
[398864946,1765937443598,-150.0,0.00017088,2]
[398864947,1765937443607,-156.18558464,0.00017088,2]
[398864948,1765937443616,-166.66,0.00017182,2]
[398864949,1765937443625,-1680.0,0.00017205,2]
[398864950,1765937443634,-1607.0,0.00017222,2]
[398864951,1765937443646,-3453.0,0.00017222,2]
[398864952,1765937443656,-564.0,0.00017222,2]
[398864953,1765937443665,-1261.0,0.00017222,2]
[398864954,1765937443674,-911.0,0.00017223,2]
[398864955,1765937443684,-1203.613,0.00017223,2]
[398864956,1765937443693,-2427.0,0.00017223,2]
[398864957,1765937443702,-4799.0,0.00017223,2]
[398864958,1765937443712,-6524.0,0.00017223,2]
[398864959,1765937443723,-581.406,0.00017223,2]
[398864960,1765937443733,-474.0,0.00017223,2]
[398864961,1765937443742,-4329.35421528,0.00017233,2]
[398864962,1765937443752,-873.34,0.0001726,3]
[398864963,1765937443762,-8903.14320062,0.00017385,2]
[398864964,1765937443771,-198.87783909,0.00017399,2]
[398864965,1765937443780,-873.34,0.00017534,4]
[398864966,1765937443789,-600.0,0.00017534,2]
[398864967,1765937443799,-4329.35421528,0.00017567,2]
[398864968,1765937443808,-8903.14320062,0.00017688,2]
[398864969,1765937443818,-166.66,0.00017731,2]
[398864970,1765937443827,-300.0,0.00017735,2]
[398864971,1765937443836,-553.64373807,0.00017735,2]
[398864972,1765937443845,-298.8917242,0.00017735,2]
[398864973,1765937443854,-1234.0,0.00017735,2]
[398864974,1765937443863,-222.2873723,0.00017735,2]
[398864975,1765937443872,-198.87783909,0.00017774,2]
[398864976,1765937443881,-873.34,0.00017808,5]
[398864977,1765937443890,-183.97,0.00017834,2]
[398864978,1765937443901,-454.0,0.00017893,2]
[398864979,1765937443910,-561.91351899,0.000179,2]
[398864980,1765937443920,-3739.6085,0.000179,2]
[398864981,1765937443929,-4329.35421528,0.000179,2]
[398864982,1765937443937,-454.0,0.00017937,2]
[398864983,1765937443946,-866.0,0.00017984,2]
[398864984,1765937443954,-8903.14320062,0.00017991,2]
[398864985,1765937443963,-5883.0,0.00018,2]
[398864986,1765937443973,-830100.04297706,0.00018,2]
[398864987,1765937443982,-200.0,0.00018,2]
[398864988,1765937443994,-790.97120425,0.00018,2]
[398864989,1765937444003,-561.91351894,0.00018067,2]
[398864990,1765937444012,-873.34,0.00018082,6]
[398864991,1765937444022,-600.0,0.00018082,2]
[398864992,1765937444032,-198.87783909,0.00018149,2]
[398864993,1765937444042,-454.0,0.00018157,2]
[398864994,1765937444051,-561.91351894,0.00018233,2]
[398864995,1765937444060,-4329.35421528,0.00018233,2]
[398864996,1765937444071,-454.0,0.00018268,2]
[398864997,1765937444082,-166.66,0.0001828,2]
[398864998,1765937444093,-574.12855637,0.00018283,2]
[398864999,1765937444102,-1234.0,0.00018283,2]
[398865000,1765937444111,-8903.14320062,0.00018294,2]
[398865001,1765937444120,-454.0,0.00018295,2]
[398865002,1765937444130,-1008.0,0.000183,2]
[398865003,1765937444139,-873.34,0.00018356,7]
[398865004,1765937444149,-47629.81,0.00018356,2]
[398865005,1765937444459,-454.0,0.00018393,2]
[398865006,1765937444471,-561.91351894,0.000184,2]
[398865007,1765937444480,-324.0,0.00018409,2]
[398865008,1765937444489,-324.0,0.0001841,2]
[398865009,1765937444499,-454.0,0.00018424,2]
[398865010,1765937444508,-324.0,0.00018506,2]
[398865011,1765937444518,-4789.7667143,0.00018519,2]
[398865012,1765937444527,-198.87783909,0.00018525,2]
[398865013,1765937444537,-454.0,0.00018526,2]
[398865014,1765937444547,-454.0,0.00018538,2]
[398865015,1765937444557,-561.91351894,0.00018567,2]
[398865016,1765937444567,-4329.35421528,0.00018567,2]
[398865017,1765937444577,-1000.0,0.00018577,2]
[398865018,1765937444588,-1600.0,0.00018583,2]
[398865019,1765937444598,-8903.14320062,0.00018597,2]
[398865020,1765937444609,-324.0,0.00018605,2]
[398865021,1765937444619,-2499.27395235,0.0001862,2]
[398865022,1765937444628,-873.34,0.0001863,8]
[398865023,1765937444639,-150.0,0.0001863,2]
[398865024,1765937444651,-500.0,0.0001863,2]
[398865025,1765937444660,-150.94100187,0.0001863,2]
[398865026,1765937444670,-500.0,0.0001863,2]
[398865027,1765937444679,-150.0,0.0001863,2]
[398865028,1765937444688,-167.37996763,0.0001863,2]
[398865029,1765937444698,-500.0,0.0001863,2]
[398865030,1765937444707,-150.0,0.0001863,2]
[398865031,1765937444716,-500.0,0.0001863,2]
[398865032,1765937444727,-150.0,0.0001863,2]
[398865033,1765937444737,-500.0,0.0001863,2]
[398865034,1765937444746,-500.0,0.0001863,2]
[398865035,1765937444755,-150.0,0.0001863,2]
[398865036,1765937444764,-150.0,0.0001863,2]
[398865037,1765937444774,-150.0,0.0001863,2]
[398865038,1765937444790,-500.0,0.0001863,2]
[398865039,1765937444800,-150.0,0.0001863,2]
[398865040,1765937444811,-151.23650856,0.0001863,2]
[398865041,1765937444820,-150.0,0.0001863,2]
[398865042,1765937444831,-162.00439352,0.0001863,2]
[398865043,1765937444841,-500.0,0.0001863,2]
[398865044,1765937444852,-150.0,0.0001863,2]
[398865045,1765937444862,-500.0,0.0001863,2]
[398865046,1765937444871,-2050.0,0.0001863,2]
[398865047,1765937444880,-150.0,0.0001863,2]
[398865048,1765937444890,-500.0,0.0001863,2]
[398865049,1765937444900,-500.0,0.0001863,2]
[398865050,1765937444912,-500.0,0.0001863,2]
[398865051,1765937444921,-150.0,0.0001863,2]
[398865052,1765937444932,-150.0,0.0001863,2]
[398865053,1765937444941,-150.0,0.0001863,2]
[398865054,1765937444951,-500.0,0.0001863,2]
[398865055,1765937444960,-500.0,0.0001863,2]
[398865056,1765937444969,-500.0,0.0001863,2]
[398865057,1765937444978,-150.0,0.0001863,2]
[398865058,1765937444988,-150.0,0.0001863,2]
[398865059,1765937444998,-150.0,0.0001863,2]
[398865060,1765937445008,-150.0,0.0001863,2]
[398865061,1765937445018,-600.0,0.0001863,2]
[398865062,1765937445027,-324.0,0.00018653,2]
[398865063,1765937445037,-843.0,0.00018655,2]
[398865064,1765937445046,-561.91351894,0.00018733,2]
[398865065,1765937445055,-151.0,0.00018736,2]
[398865066,1765937445064,-262763.64436656,0.00018739,2]
[398865067,1765937445694,-40948.2577864,0.00018739,2]
[398865201,1765937544366,-1000.0,0.00012,2]
[398865203,1765937958054,285.53,8.163e-05,2]
[398865204,1765937958258,285.53,8.592e-05,2]
[398865205,1765937958416,285.53,9.022e-05,2]
[398865206,1765937958586,285.53,9.451e-05,2]
[398865207,1765937958733,285.53,9.881e-05,2]
[398865208,1765937958882,285.53,0.00010311,2]
[398865209,1765937959087,285.53,0.0001074,2]
[398865210,1765937959320,285.53,0.0001117,2]
[398865211,1765937960382,285.53,0.000116,2]
[398865212,1765937974597,-285.53,0.00012029,2]
[398865214,1765938332867,176.28719515,0.0002,120]
[398865217,1765938501880,387.98483387,0.0001,2]
[398865243,1765938634118,-285.53,0.00012459,2]
[398865244,1765938634127,-154.470006,0.00012459,2]
[398865245,1765938634138,-97.529994,0.00012459,2]
[398865246,1765938634147,-285.53,0.00012888,2]
[398865247,1765938634156,-285.53,0.00013318,2]
[398865248,1765938634165,-300.0,0.00013704,2]
[398865249,1765938634175,-190.41840595,0.00013704,2]
[398865250,1765938634187,-109.58159405,0.00013704,2]
[398865251,1765938634196,-372.15953271,0.00013704,2]
[398865252,1765938634210,-714.41472632,0.00013704,2]
[398865253,1765938634222,-113.42574097,0.00013704,2]
[398865254,1765938634231,-300.0,0.00013705,2]
[398865255,1765938634240,-300.0,0.00013705,2]
[398865256,1765938634249,-300.0,0.00013705,2]
[398865257,1765938634258,-300.0,0.00013705,2]
[398865258,1765938634267,-300.0,0.00013705,2]
[398865259,1765938634276,-302.39597639,0.00013705,2]
[398865260,1765938634285,-300.0,0.00013705,2]
[398865261,1765938634294,-285.53,0.00013748,2]
[398865262,1765938634303,-177.21,0.00013803,2]
[398865263,1765938634312,-1003.00822817,0.00014177,2]
[398865264,1765938634323,-32.61360733,0.00014177,2]
[398865265,1765938634332,-285.53,0.00014177,2]
[398865266,1765938634341,-501.76123807,0.00014273,2]
[398865267,1765938634350,-368.25,0.00014528,2]
[398865268,1765938634359,-285.53,0.00014607,2]
[398865269,1765938634369,-1550.32,0.00014607,2]
[398865270,1765938634378,-711.5,0.00014607,2]
[398865271,1765938634387,-294.10359805,0.00015,2]
[398865272,1765938634396,-420.0,0.00015018,2]
[398865273,1765938634405,-285.53,0.00015036,2]
[398865274,1765938634415,-200.0,0.00015039,2]
[398865275,1765938634424,-1871.06,0.0001505,2]
[398865276,1765938634433,-217.38388413,0.00015072,2]
[398865277,1765938634442,-500.0,0.00015072,2]
[398865278,1765938634452,-389.53228361,0.00015072,2]
[398865279,1765938634462,-157.58665323,0.00015072,2]
[398865280,1765938634473,-488.93905078,0.00015072,2]
[398865281,1765938634482,-500.0,0.00015072,2]
[398865282,1765938634491,-300.0,0.00015072,2]
[398865283,1765938634500,-500.76747015,0.00015073,2]
[398865284,1765938634509,-500.39420358,0.00015073,2]
[398865285,1765938634518,-276.9367457,0.00015073,2]
[398865286,1765938634529,-224.25096241,0.00015073,2]
[398865287,1765938634538,-500.5015057,0.00015073,2]
[398865288,1765938634547,-312.89624683,0.00015073,2]
[398865289,1765938634556,-502.1517479,0.00015073,2]
[398865290,1765938634566,-500.38556564,0.00015073,2]
[398865291,1765938634575,-500.0,0.00015073,2]
[398865292,1765938634584,-500.83221372,0.00015073,2]
[398865293,1765938634593,-500.716327,0.00015073,2]
[398865294,1765938634602,-500.0,0.00015073,2]
[398865295,1765938634611,-500.0,0.00015073,2]
[398865296,1765938634620,-541.5953184,0.00015073,2]
[398865297,1765938634629,-500.672544,0.00015073,2]
[398865298,1765938634638,-513.10179283,0.00015073,2]
[398865299,1765938634648,-502.64483819,0.00015073,2]
[398865300,1765938634658,-400.38339201,0.00015074,2]
[398865301,1765938634669,-1279.61660799,0.00015074,2]
[398865302,1765938634678,-285.53,0.00015466,2]
[398865303,1765938634687,-166.67,0.00015641,2]
[398865304,1765938634696,-505.0,0.000158,2]
[398865305,1765938634706,-285.53,0.00015896,2]
[398865306,1765938634715,-523.17339201,0.00015899,2]
[398865307,1765938634726,-4788.92949665,0.00015899,2]
[398865308,1765938634735,-418.09589359,0.00015899,2]
[398865309,1765938634806,-81.90410641,0.00015899,2]
[398865310,1765938634816,-231.93236161,0.00015899,2]
[398865311,1765938634826,-164.23749797,0.00015899,2]
[398865312,1765938634836,-336.72929557,0.00015899,2]
[398865313,1765938634846,-151.79,0.000159,2]
[398865314,1765938634856,-4529.3646131,0.000159,2]
[398865315,1765938634867,-323.44091325,0.000159,2]
[398865316,1765938634879,-835.19021143,0.000159,2]
[398865317,1765938634893,-567.05475244,0.000159,2]
[398865318,1765938634904,-2790.62908387,0.000159,2]
[398865319,1765938634913,-10415.77073261,0.000159,2]
[398865320,1765938634926,-290.05642929,0.000159,2]
[398865321,1765938634937,-13597.4051901,0.000159,2]
[398865322,1765938634948,-872.66531044,0.000159,2]
[398865323,1765938634961,-603.84235597,0.000159,2]
[398865324,1765938634971,-1613.9502996,0.000159,2]
[398865325,1765938634982,-4328.06566314,0.000159,2]
[398865326,1765938634992,-406.33173265,0.000159,2]
[398865327,1765938635006,-780.71527075,0.000159,2]
[398865328,1765938635018,-2065.94529364,0.000159,2]
[398865329,1765938635029,-2062.13091084,0.000159,2]
[398865330,1765938635062,-357.87831592,0.000159,2]
[398865470,1765938640046,265.50261339,0.00022,30]
[398865483,1765938641171,-709.30749886,0.000159,2]
[398865484,1765938641243,-480.71237647,0.000159,2]
[398865485,1765938641332,-407.12248135,0.000159,2]
[398865486,1765938641343,-9102.62463708,0.000159,2]
[398865487,1765938641694,-190852.53838742,0.000159,2]
[398865488,1765938641708,-16894.57282824,0.000159,2]
[398865489,1765938641720,-140425.48338563,0.000159,2]
[398865490,1765938641730,-1984.29404739,0.000159,2]
[398865491,1765938641740,-1984.29404739,0.000159,2]
[398865492,1765938641750,-1984.29404739,0.000159,2]
[398865493,1765938641759,-1984.29404739,0.000159,2]
[398865494,1765938641768,-500.0,0.00015999,2]
[398865495,1765938641777,-500.0,0.00015999,2]
[398865496,1765938641787,-556.65384487,0.00015999,2]
[398865497,1765938641796,-279.99666033,0.00015999,2]
[398865498,1765938641805,-510.72092974,0.00015999,2]
[398865499,1765938641816,-310156.68058783,0.00016,4]
[398865500,1765938641827,-244.711737,0.00016,2]
[398865501,1765938641835,-151.86,0.00016,2]
[398865502,1765938641845,-5312.10288862,0.00016013,2]
[398865503,1765938641855,-9045.67957404,0.00016014,2]
[398865504,1765938641864,-5312.10288862,0.00016128,2]
[398865505,1765938641874,-9045.67957404,0.00016128,2]
[398865506,1765938641883,-510.0,0.00016202,2]
[398865507,1765938641892,-5312.10288862,0.00016242,2]
[398865508,1765938641902,-9045.67957404,0.00016243,2]
[398865509,1765938641911,-400.37819361,0.00016317,2]
[398865510,1765938641920,-285.53,0.00016325,2]
[398865511,1765938641929,-5312.10288862,0.00016356,2]
[398865512,1765938641938,-9045.67957404,0.00016357,2]
[398865513,1765938641947,-481.46730423,0.00016377,2]
[398865514,1765938641956,-1879.8007217,0.00016393,2]
[398865515,1765938641966,-225.63083689,0.00016402,2]
[398865516,1765938641975,-500.0,0.00016438,2]
[398865517,1765938641984,-587.0,0.00016458,2]
[398865518,1765938641993,-5312.10288862,0.00016471,2]
[398865519,1765938642005,-9045.67957404,0.00016471,2]
[398865520,1765938642015,-166.67,0.00016502,2]
[398865521,1765938642025,-2351.0,0.00016581,2]
[398865522,1765938642034,-5312.10288862,0.00016585,2]
[398865523,1765938642043,-9045.67957404,0.00016585,2]
[398865524,1765938642052,-225.63083689,0.00016665,2]
[398865525,1765938642061,-5312.10288862,0.00016699,2]
[398865526,1765938642069,-9045.67957404,0.000167,2]
[398865527,1765938642079,-5312.10288862,0.00016814,2]
[398865528,1765938642088,-9045.67957404,0.00016814,2]
[398865529,1765938642098,-9045.67957404,0.00016928,2]
[398865530,1765938642109,-5312.10288862,0.00016928,2]
[398865531,1765938642118,-225.63083689,0.00016928,2]
[398865532,1765938642127,-176.0809044,0.00016988,2]
[398865533,1765938642136,-151.0,0.00016997,2]
[398865534,1765938642145,-300.0,0.00016999,2]
[398865535,1765938642154,-500.0,0.00016999,2]
[398865536,1765938642163,-500.0,0.00016999,2]
[398865537,1765938642172,-500.0,0.00016999,2]
[398865538,1765938642181,-500.0,0.00016999,2]
[398865539,1765938642190,-500.0,0.00016999,2]
[398865540,1765938642198,-500.0,0.00016999,2]
[398865541,1765938642207,-500.0,0.00016999,2]
[398865542,1765938642216,-500.0,0.00016999,2]
[398865543,1765938642226,-500.0,0.00016999,2]
[398865544,1765938642235,-500.0,0.00016999,2]
[398865545,1765938642244,-500.0,0.00016999,2]
[398865546,1765938642252,-500.0,0.00016999,2]
[398865547,1765938642261,-500.0,0.00016999,2]
[398865548,1765938642270,-500.0,0.00016999,2]
[398865549,1765938642279,-500.0,0.00016999,2]
[398865550,1765938642288,-595.91125226,0.00016999,2]
[398865551,1765938642297,-300.0,0.00016999,2]
[398865552,1765938642306,-801702.3501389,0.00017,2]
[398865568,1765938644588,-311.98467859,0.00017,2]
[398865569,1765938644599,-524.9326699,0.00017,2]
[398865570,1765938644610,-4065.58012154,0.00017,2]
[398865571,1765938644660,-347.053942,0.00017,2]
[398865572,1765938644693,-8242.04724838,0.00017,2]
[398865573,1765938644743,-43292.92075224,0.00017,2]
[398865574,1765938644818,-4698705.2833485,0.00017,2]
[398865575,1765938644829,-151.39043315,0.00017088,2]
[398865576,1765938644838,-150.0,0.00017088,2]
[398865577,1765938644849,-150.0,0.00017088,2]
[398865578,1765938644858,-150.0,0.00017088,2]
[398865579,1765938644868,-150.45551493,0.00017088,2]
[398865580,1765938644877,-150.0,0.00017088,2]
[398865581,1765938644887,-150.0,0.00017088,2]
[398865582,1765938644896,-150.61283192,0.00017088,2]
[398865583,1765938644907,-150.0,0.00017088,2]
[398865584,1765938644918,-150.92700443,0.00017088,2]
[398865585,1765938644927,-150.0,0.00017088,2]
[398865586,1765938644937,-150.0,0.00017088,2]
[398865587,1765938644949,-150.0,0.00017088,2]
[398865588,1765938644964,-150.62101666,0.00017088,2]
[398865589,1765938644974,-150.0,0.00017088,2]
[398865590,1765938644983,-150.67145511,0.00017088,2]
[398865591,1765938644992,-150.88444956,0.00017088,2]
[398865592,1765938645002,-150.0,0.00017088,2]
[398865593,1765938645014,-176.28,0.00017133,2]
[398865594,1765938645024,-150.0,0.00017155,2]
[398865595,1765938645033,-150.0,0.00017158,2]
[398865596,1765938645042,-150.0,0.00017167,2]
[398865597,1765938645053,-150.0,0.00017183,2]
[398865598,1765938645062,-150.0,0.00017214,2]
[398865599,1765938645071,-734.78112083,0.00017223,2]
[398865600,1765938645082,-1600.7238717,0.00017223,2]
[398865601,1765938645091,-1288.81390186,0.00017223,2]
[398865602,1765938645100,-150.0,0.00017223,2]
[398865603,1765938645110,-150.0,0.00017223,2]
[398865604,1765938645119,-150.0,0.00017228,2]
[398865605,1765938645129,-150.0,0.00017234,2]
[398865606,1765938645139,-150.0,0.00017246,2]
[398865607,1765938645148,-999.0,0.00017263,3]
[398865608,1765938645157,-150.0,0.00017278,2]
[398865609,1765938645167,-150.0,0.00017291,2]
[398865610,1765938645176,-150.0,0.00017299,2]
[398865611,1765938645185,-200.0,0.00017322,2]
[398865612,1765938645193,-150.0,0.00017325,2]
[398865613,1765938645202,-150.0,0.00017341,2]
[398865614,1765938645211,-150.0,0.00017359,2]
[398865615,1765938645220,-150.0,0.00017359,2]
[398865616,1765938645230,-166.67,0.00017362,2]
[398865617,1765938645239,-150.0,0.00017369,2]
[398865618,1765938645248,-150.0,0.00017372,2]
[398865619,1765938645257,-150.0,0.0001738,2]
[398865620,1765938645266,-300.0,0.0001739,2]
[398865621,1765938645275,-553.64373807,0.0001739,2]
[398865622,1765938645284,-200.0,0.0001739,2]
[398865623,1765938645293,-207.4,0.0001739,2]
[398865624,1765938645302,-215.0738,0.0001739,2]
[398865625,1765938645311,-223.0315306,0.0001739,2]
[398865626,1765938645320,-231.28369723,0.0001739,2]
[398865627,1765938645329,-239.84119403,0.0001739,2]
[398865628,1765938645338,-298.8917242,0.0001739,2]
[398865629,1765938645347,-150.0,0.00017404,2]
[398865630,1765938645356,-866.0,0.00017423,2]
[398865631,1765938645365,-150.0,0.00017427,2]
[398865632,1765938645374,-150.0,0.00017436,2]
[398865633,1765938645383,-150.0,0.00017439,2]
[398865634,1765938645392,-150.0,0.00017467,2]
[398865635,1765938645401,-150.0,0.00017467,2]
[398865636,1765938645410,-150.0,0.00017483,2]
[398865637,1765938645419,-150.0,0.00017495,2]
[398865638,1765938645427,-150.0,0.00017495,2]
[398865639,1765938645437,-150.0,0.0001751,2]
[398865640,1765938645446,-150.0,0.00017526,2]
[398865641,1765938645455,-150.0,0.00017562,2]
[398865642,1765938645464,-150.0,0.00017562,2]
[398865643,1765938645474,-150.0,0.00017562,2]
[398865644,1765938645483,-150.0,0.00017562,2]
[398865645,1765938645493,-150.0,0.00017562,2]
[398865646,1765938645502,-150.0,0.0001758,2]
[398865647,1765938645511,-150.0,0.00017594,2]
[398865648,1765938645520,-150.0,0.0001763,2]
[398865649,1765938645529,-150.0,0.0001763,2]
[398865650,1765938645538,-150.0,0.00017641,2]
[398865651,1765938645549,-150.0,0.0001765,2]
[398865652,1765938645557,-150.0,0.00017657,2]
[398865653,1765938645566,-150.0,0.00017672,2]
[398865654,1765938645575,-150.0,0.00017698,2]
[398865655,1765938645590,-564.0,0.00017702,2]
[398865656,1765938645600,-1261.0,0.00017702,2]